fUSD/lending_fUSD_20260409
["ID","MTS","AMOUNT","RATE_DAILY","PERIOD"]
[420159607,1775736640135,-1051.166451,0.00015003,2]
[420159608,1775736640144,-2531.466401,0.00015003,2]
[420159609,1775736640154,-1051.166451,0.00015003,2]
[420159610,1775736640164,-2531.466401,0.00015003,2]
[420159611,1775736640174,-381.996298,0.00015003,2]
[420159612,1775736640184,-804.866183,0.00015003,2]
[420159613,1775736640194,-1051.166451,0.00015003,2]
[420159614,1775736640204,-381.996298,0.00015003,2]
[420159615,1775736640214,-1051.166451,0.00015003,2]
[420159616,1775736640224,-804.866183,0.00015003,2]
[420159617,1775736640234,-381.996298,0.00015003,2]
[420159618,1775736640243,-381.996298,0.00015003,2]
[420159619,1775736640254,-642.309745,0.00015003,2]
[420159620,1775736640529,-804.866183,0.00015003,2]
[420159621,1775736640568,-390.494255,0.00015003,2]
[420159622,1775736640578,-642.309745,0.00015003,2]
[420159623,1775736640588,-804.866183,0.00015003,2]
[420159624,1775736640598,-390.494255,0.00015003,2]
[420159625,1775736640608,-642.309745,0.00015003,2]
[420159626,1775736640618,-390.494255,0.00015003,2]
[420159627,1775736640628,-642.309745,0.00015003,2]
[420159628,1775736640638,-390.494255,0.00015003,2]
[420159630,1775736640648,-151.0,0.00015003,2]
[420159632,1775736640658,-223.268948,0.00015003,2]
[420159633,1775736640669,-223.268948,0.00015003,2]
[420159637,1775736640680,-223.268948,0.00015003,2]
[420159639,1775736640691,-638.123197,0.00015003,2]
[420159641,1775736640701,-295.777885,0.00015003,2]
[420159642,1775736640711,-223.268948,0.00015003,2]
[420159643,1775736640721,-295.777885,0.00015003,2]
[420159644,1775736640731,-638.123197,0.00015003,2]
[420159645,1775736640741,-1256.584761,0.00015003,2]
[420159646,1775736640752,-638.123197,0.00015003,2]
[420159647,1775736640763,-1256.584761,0.00015003,2]
[420159648,1775736640773,-350.27597601,0.00015003,2]
[420159649,1775736640786,-287.84722099,0.00015003,2]
[420159650,1775736640796,-1256.584761,0.00015003,2]
[420159651,1775736640806,-1256.584761,0.00015003,2]
[420159652,1775736640816,-295.777885,0.00015003,2]
[420159653,1775736640827,-278.430787,0.00015003,2]
[420159654,1775736640837,-307.102399,0.00015003,2]
[420159655,1775736640847,-295.777885,0.00015003,2]
[420159656,1775736640857,-278.430787,0.00015003,2]
[420159657,1775736640867,-307.102399,0.00015003,2]
[420159658,1775736640877,-278.430787,0.00015003,2]
[420159659,1775736640887,-307.102399,0.00015003,2]
[420159660,1775736640897,-278.430787,0.00015003,2]
[420159661,1775736640907,-307.102399,0.00015003,2]
[420159662,1775736640916,-151.0,0.00015003,2]
[420159663,1775736640927,-624.772443,0.00015003,2]
[420159664,1775736640936,-151.0,0.00015003,2]
[420159665,1775736640946,-151.0,0.00015003,2]
[420159666,1775736640955,-624.772443,0.00015003,2]
[420159667,1775736640966,-151.0,0.00015003,2]
[420159668,1775736640975,-624.772443,0.00015003,2]
[420159669,1775736640985,-151.0,0.00015003,2]
[420159670,1775736640996,-151.0,0.00015003,2]
[420159671,1775736641006,-624.772443,0.00015003,2]
[420159672,1775736641016,-1220.086105,0.00015003,2]
[420159673,1775736641026,-172.314368,0.00015003,2]
[420159674,1775736641036,-1220.086105,0.00015003,2]
[420159676,1775736641046,-172.314368,0.00015003,2]
[420159677,1775736641055,-358.263461,0.00015003,2]
[420159678,1775736641065,-151.0,0.00015003,2]
[420159679,1775736641074,-1220.086105,0.00015003,2]
[420159680,1775736641084,-358.263461,0.00015003,2]
[420159681,1775736641094,-172.314368,0.00015003,2]
[420159682,1775736641104,-151.0,0.00015003,2]
[420159683,1775736641113,-1220.086105,0.00015003,2]
[420159684,1775736641123,-151.0,0.00015003,2]
[420159685,1775736641133,-358.263461,0.00015003,2]
[420159686,1775736641142,-172.314368,0.00015003,2]
[420159687,1775736641153,-1608.287778,0.00015003,2]
[420159688,1775736641163,-151.0,0.00015003,2]
[420159689,1775736641173,-192.515506,0.00015003,2]
[420159690,1775736641183,-358.263461,0.00015003,2]
[420159691,1775736641194,-151.0,0.00015003,2]
[420159692,1775736641205,-896.06297791,0.00015003,2]
[420159693,1775736641218,-712.22480009,0.00015003,2]
[420159694,1775736641230,-151.0,0.00015003,2]
[420159695,1775736641239,-192.515506,0.00015003,2]
[420159696,1775736641249,-151.0,0.00015003,2]
[420159697,1775736641259,-100.23999691,0.00015003,2]
[420159698,1775736641667,-50.76000309,0.00015003,2]
[420159699,1775736641678,-1608.287778,0.00015003,2]
[420159700,1775736641688,-276.965944,0.00015003,2]
[420159701,1775736641698,-502.13939762,0.00015003,2]
[420159702,1775736641710,-1615.19818738,0.00015003,2]
[420159703,1775736641720,-192.515506,0.00015003,2]
[420159704,1775736641730,-151.0,0.00015003,2]
[420159705,1775736641740,-151.0,0.00015003,2]
[420159706,1775736641750,-1608.287778,0.00015003,2]
[420159707,1775736641760,-2117.337585,0.00015003,2]
[420159708,1775736641770,-192.515506,0.00015003,2]
[420159709,1775736641780,-151.0,0.00015003,2]
[420159710,1775736641789,-2117.337585,0.00015003,2]
[420159711,1775736641799,-151.0,0.00015003,2]
[420159712,1775736641810,-2117.337585,0.00015003,2]
[420159713,1775736641820,-151.0,0.00015003,2]
[420159714,1775736641830,-2652.517486,0.00015003,2]
[420159715,1775736641840,-151.0,0.00015003,2]
[420159716,1775736641850,-1476.102927,0.00015003,2]
[420159717,1775736641860,-2652.517486,0.00015003,2]
[420159718,1775736641870,-151.0,0.00015003,2]
[420159719,1775736641880,-151.0,0.00015003,2]
[420159720,1775736641890,-1476.102927,0.00015003,2]
[420159721,1775736641900,-2652.517486,0.00015003,2]
[420159722,1775736641910,-151.0,0.00015003,2]
[420159723,1775736641919,-1476.102927,0.00015003,2]
[420159724,1775736641929,-2652.517486,0.00015003,2]
[420159725,1775736641940,-151.0,0.00015003,2]
[420159726,1775736641950,-151.0,0.00015003,2]
[420159727,1775736641960,-1476.102927,0.00015003,2]
[420159728,1775736641970,-151.0,0.00015003,2]
[420159729,1775736641980,-151.0,0.00015003,2]
[420159730,1775736641991,-214.760309,0.00015003,2]
[420159731,1775736642003,-214.760309,0.00015003,2]
[420159732,1775736642013,-214.760309,0.00015003,2]
[420159733,1775736642023,-1383.783849,0.00015003,2]
[420159734,1775736642033,-214.760309,0.00015003,2]
[420159735,1775736642043,-151.0,0.00015003,2]
[420159736,1775736642053,-1383.783849,0.00015003,2]
[420159737,1775736642063,-186.315211,0.00015003,2]
[420159738,1775736642073,-151.0,0.00015003,2]
[420159739,1775736642083,-1383.783849,0.00015003,2]
[420159740,1775736642093,-186.315211,0.00015003,2]
[420159741,1775736642103,-151.0,0.00015003,2]
[420159742,1775736642112,-151.0,0.00015003,2]
[420159743,1775736642122,-186.315211,0.00015003,2]
[420159744,1775736642133,-151.0,0.00015003,2]
[420159745,1775736642143,-186.315211,0.00015003,2]
[420159746,1775736642153,-1383.783849,0.00015003,2]
[420159747,1775736642163,-668.617506,0.00015003,2]
[420159748,1775736642172,-151.0,0.00015003,2]
[420159749,1775736642182,-668.617506,0.00015003,2]
[420159750,1775736642192,-151.0,0.00015003,2]
[420159751,1775736642203,-1211.77155,0.00015003,2]
[420159752,1775736642213,-151.0,0.00015003,2]
[420159753,1775736642222,-151.0,0.00015003,2]
[420159754,1775736642233,-668.617506,0.00015003,2]
[420159755,1775736642242,-151.0,0.00015003,2]
[420159756,1775736642252,-1211.77155,0.00015003,2]
[420159757,1775736642262,-151.0,0.00015003,2]
[420159758,1775736642272,-668.617506,0.00015003,2]
[420159759,1775736642282,-151.0,0.00015003,2]
[420159760,1775736642292,-1211.77155,0.00015003,2]
[420159761,1775736642302,-151.0,0.00015003,2]
[420159762,1775736642313,-280.449207,0.00015003,2]
[420159763,1775736642323,-1211.77155,0.00015003,2]
[420159764,1775736642333,-679.588894,0.00015003,2]
[420159765,1775736642342,-679.588894,0.00015003,2]
[420159766,1775736642351,-679.588894,0.00015003,2]
[420159767,1775736642362,-679.588894,0.00015003,2]
[420159768,1775736642372,-8882.6885148,0.00015005,2]
[420159769,1775736642382,-500.0,0.00015005,2]
[420159770,1775736642392,-151.0,0.00015005,2]
[420159771,1775736642402,-2000.0,0.0001501,2]
[420159772,1775736642412,-9211.34798985,0.0001506,2]
[420159773,1775736642422,-500.0,0.0001506,2]
[420159774,1775736642432,-151.0,0.0001506,2]
[420159775,1775736642443,-350.0,0.00015066,2]
[420159776,1775736642452,-1166.53,0.00015068,2]
[420159777,1775736642462,-800.0,0.00015068,2]
[420159778,1775736642472,-206.7,0.00015069,2]
[420159779,1775736642483,-212.82117648,0.00015073,2]
[420159780,1775736642493,-500.0,0.00015073,2]
[420159781,1775736642503,-502.27729183,0.00015073,2]
[420159782,1775736642512,-500.0,0.00015073,2]
[420159783,1775736642522,-500.0,0.00015073,2]
[420159784,1775736642532,-500.0,0.00015073,2]
[420159785,1775736642542,-500.0,0.00015073,2]
[420159786,1775736642552,-500.0,0.00015073,2]
[420159787,1775736642562,-350.0,0.00015107,4]
[420159788,1775736642572,-2000.0,0.0001511,2]
[420159789,1775736642582,-350.0,0.00015112,4]
[420159790,1775736642593,-9552.16786547,0.00015115,2]
[420159791,1775736642603,-500.0,0.00015115,2]
[420159792,1775736642614,-151.0,0.00015115,2]
[420159793,1775736642624,-786.15,0.00015126,2]
[420159794,1775736642633,-12814.42767027,0.00015142,2]
[420159795,1775736642643,-1400.0,0.00015162,2]
[420159796,1775736642653,-207.18506954,0.0001517,2]
[420159797,1775736642663,-500.0,0.0001517,2]
[420159798,1775736642672,-151.0,0.0001517,2]
[420159799,1775736642682,-603.21151945,0.0001518,2]
[420159800,1775736642692,-2526.43376,0.000152,2]
[420159801,1775736642702,-2000.0,0.0001521,2]
[420159802,1775736642711,-500.0,0.00015225,2]
[420159803,1775736642721,-151.0,0.00015225,2]
[420159804,1775736642730,-267.74322514,0.0001524,2]
[420159805,1775736642741,-355.63860143,0.0001524,2]
[420159806,1775736642752,-868.87936219,0.0001524,2]
[420159807,1775736642762,-534.08568279,0.0001524,2]
[420159808,1775736642772,-444.90946404,0.0001527,2]
[420159809,1775736642783,-500.0,0.0001528,2]
[420159810,1775736642794,-151.0,0.0001528,2]
[420159811,1775736642804,-3536.702,0.00015283,2]
[420159812,1775736642814,-169.324,0.00015283,2]
[420159813,1775736642824,-1300.0,0.000153,5]
[420159814,1775736642834,-154.06,0.00015301,2]
[420159815,1775736642845,-151.0,0.00015307,2]
[420159816,1775736642854,-2000.0,0.0001531,2]
[420159817,1775736642864,-500.0,0.00015335,2]
[420159818,1775736642874,-151.0,0.00015335,2]
[420159819,1775736642885,-2000.0,0.00015342,2]
[420159820,1775736642901,-162.0,0.0001536,2]
[420159821,1775736642911,-177.5618893,0.00015373,5]
[420159822,1775736643137,-177.5618893,0.00015373,5]
[420159823,1775736643147,-181.08010149,0.00015388,2]
[420159824,1775736643158,-1235.18214925,0.00015388,2]
[420159825,1775736643168,-200.0,0.00015388,2]
[420159826,1775736643178,-771.01748645,0.00015388,2]
[420159827,1775736643187,-599.60298507,0.00015388,2]
[420159828,1775736643197,-181.08010149,0.00015388,2]
[420159829,1775736643208,-290.26104003,0.00015388,2]
[420159830,1775736643218,-500.0,0.0001539,2]
[420159831,1775736643229,-151.0,0.0001539,2]
[420159832,1775736643239,-3022.39656824,0.00015396,2]
[420159833,1775736643250,-786.15,0.000154,2]
[420159834,1775736643260,-3500.0,0.000154,5]
[420159835,1775736643270,-1600.0,0.000154,5]
[420159837,1775736643281,-440.0,0.00015401,2]
[420159839,1775736643291,-2000.0,0.00015405,2]
[420159840,1775736643301,-500.0,0.00015405,2]
[420159841,1775736643312,-2000.0,0.0001541,2]
[420159842,1775736643322,-500.0,0.00015418,2]
[420159843,1775736643338,-162.4732,0.0001542,2]
[420159844,1775736643349,-1000.0,0.0001543,2]
[420159846,1775736643570,-162.4732,0.0001543,2]
[420159847,1775736643581,-1000.0,0.00015435,2]
[420159849,1775736643592,-392.04623121,0.00015439,2]
[420159851,1775736643603,-162.4732,0.0001544,2]
[420159853,1775736643615,-500.0,0.00015445,2]
[420159855,1775736643625,-151.0,0.00015445,2]
[420159856,1775736643636,-274.40722252,0.00015445,2]
[420159858,1775736643646,-150.0,0.00015446,2]
[420159860,1775736643656,-1422.20787815,0.00015446,2]
[420159861,1775736643667,-3591.12228348,0.00015446,2]
[420159862,1775736643678,-5827.69009412,0.00015446,2]
[420159863,1775736643688,-608.55105821,0.00015446,2]
[420159864,1775736643699,-257.15967063,0.00015446,2]
[420159865,1775736643710,-2000.0,0.0001545,2]
[420159866,1775736643720,-2000.0,0.0001545,2]
[420159867,1775736643731,-2000.0,0.0001545,2]
[420159868,1775736643741,-162.4732,0.0001545,2]
[420159869,1775736643753,-12388.82858841,0.00015453,2]
[420159870,1775736643764,-1000.0,0.00015455,2]
[420159871,1775736643774,-1000.0,0.00015458,2]
[420159872,1775736643785,-162.4732,0.0001546,2]
[420159873,1775736643796,-150.0,0.00015465,2]
[420159874,1775736643806,-162.4732,0.0001547,2]
[420159875,1775736643816,-1000.0,0.00015476,2]
[420159876,1775736643827,-150.0,0.00015479,2]
[420159877,1775736643838,-1000.0,0.0001548,2]
[420159878,1775736643848,-150.0,0.0001548,2]
[420159879,1775736643858,-162.4732,0.0001548,2]
[420159880,1775736643868,-162.4732,0.0001548,2]
[420159881,1775736643878,-162.4732,0.0001548,2]
[420159882,1775736643890,-162.4732,0.0001548,2]
[420159883,1775736643902,-162.4732,0.0001548,2]
[420159884,1775736643912,-1000.0,0.00015483,2]
[420159885,1775736643922,-1000.0,0.00015496,2]
[420159886,1775736643933,-500.0,0.000155,2]
[420159887,1775736643943,-151.0,0.000155,2]
[420159888,1775736643953,-700.0,0.000155,5]
[420159889,1775736643964,-300.0,0.000155,5]
[420159890,1775736643975,-300.0,0.000155,3]
[420159891,1775736643984,-300.0,0.000155,4]
[420159892,1775736643994,-1000.0,0.00015503,2]
[420159893,1775736644005,-666.0,0.00015508,2]
[420159894,1775736644015,-500.0,0.00015509,2]
[420159895,1775736644025,-501.17,0.00015509,2]
[420159896,1775736644035,-500.0,0.00015509,2]
[420159897,1775736644044,-503.38712912,0.00015509,2]
[420159898,1775736644057,-725.67,0.00015509,2]
[420159899,1775736644067,-725.67,0.00015509,2]
[420159900,1775736644077,-500.0,0.00015509,2]
[420159901,1775736644087,-500.0,0.00015509,2]
[420159902,1775736644097,-500.0,0.00015509,2]
[420159903,1775736644107,-500.0,0.00015509,2]
[420159904,1775736644117,-538.72,0.00015509,2]
[420159905,1775736644127,-538.72,0.00015509,2]
[420159906,1775736644136,-500.0,0.00015509,2]
[420159907,1775736644146,-500.0,0.00015509,2]
[420159908,1775736644156,-500.0,0.00015509,2]
[420159909,1775736644166,-500.0,0.00015509,2]
[420159910,1775736644175,-500.0,0.00015509,2]
[420159911,1775736644185,-500.0,0.00015509,2]
[420159912,1775736644195,-500.0,0.00015509,2]
[420159913,1775736644204,-500.0,0.00015509,2]
[420159914,1775736644214,-500.0,0.00015509,2]
[420159915,1775736644224,-605.72,0.00015509,2]
[420159916,1775736644234,-500.0,0.00015509,2]
[420159917,1775736644244,-500.0,0.00015509,2]
[420159918,1775736644254,-500.0,0.00015509,2]
[420159919,1775736644265,-500.0,0.00015509,2]
[420159920,1775736644275,-612.52,0.00015509,2]
[420159921,1775736644286,-612.52,0.00015509,2]
[420159922,1775736644296,-500.0,0.00015509,2]
[420159923,1775736644305,-500.0,0.00015509,2]
[420159924,1775736644316,-500.0,0.00015509,2]
[420159925,1775736644326,-500.0,0.00015509,2]
[420159926,1775736644336,-504.04476775,0.00015509,2]
[420159927,1775736644346,-500.0,0.00015509,2]
[420159928,1775736644357,-500.0,0.00015509,2]
[420159929,1775736644368,-500.0,0.00015509,2]
[420159930,1775736644379,-500.0,0.00015509,2]
[420159931,1775736644389,-500.0,0.00015509,2]
[420159932,1775736644400,-500.0,0.00015509,2]
[420159933,1775736644412,-500.0,0.00015509,2]
[420159934,1775736644422,-500.0,0.00015509,2]
[420159935,1775736644432,-504.47726605,0.00015509,2]
[420159936,1775736644441,-500.0,0.00015509,2]
[420159937,1775736644451,-500.0,0.00015509,2]
[420159938,1775736644461,-500.0,0.00015509,2]
[420159939,1775736644475,-513.62088734,0.00015509,2]
[420159940,1775736644486,-500.0,0.00015509,2]
[420159941,1775736644496,-378.03861837,0.00015509,2]
[420159942,1775736644506,-4761.13,0.00015509,2]
[420159943,1775736644515,-4761.13,0.00015509,2]
[420159944,1775736644526,-500.0,0.00015509,2]
[420159945,1775736644536,-500.0,0.00015509,2]
[420159946,1775736644546,-500.0,0.00015509,2]
[420159947,1775736644557,-500.0,0.00015509,2]
[420159948,1775736644568,-500.0,0.0001551,2]
[420159949,1775736644579,-2000.0,0.0001551,2]
[420159950,1775736644590,-1000.0,0.00015512,2]
[420159951,1775736644599,-1000.0,0.0001552,2]
[420159952,1775736644610,-1000.0,0.00015529,2]
[420159953,1775736644620,-500.0,0.00015535,2]
[420159954,1775736644631,-500.0,0.00015535,2]
[420159955,1775736644641,-200.0,0.00015535,2]
[420159957,1775736644652,-668.0,0.0001554,5]
[420159959,1775736644662,-954.48364493,0.00015543,2]
[420159961,1775736644672,-666.0,0.00015545,2]
[420159962,1775736644683,-669.82976826,0.00015545,2]
[420159963,1775736644693,-613.57,0.00015545,2]
[420159964,1775736644704,-613.57,0.00015545,2]
[420159965,1775736644714,-613.57,0.00015545,2]
[420159966,1775736644724,-613.57,0.00015545,2]
[420159967,1775736644744,-300.0,0.00015545,2]
[420159968,1775736644756,-34370.4801646,0.00015546,2]
[420159969,1775736644766,-199.9321738,0.00015546,2]
[420159970,1775736644777,-5209.3769665,0.00015546,2]
[420159971,1775736644786,-594008.9871259,0.00015546,2]
[420159972,1775736644796,-305.002892,0.00015546,2]
[420159973,1775736644806,-155.633897,0.00015546,2]
[420159974,1775736644816,-155.633897,0.00015546,2]
[420159975,1775736644826,-305.002892,0.00015546,2]
[420159976,1775736644836,-155.633897,0.00015546,2]
[420159977,1775736644846,-305.002892,0.00015546,2]
[420159978,1775736644856,-155.633897,0.00015546,2]
[420159979,1775736644867,-305.002892,0.00015546,2]
[420159980,1775736644876,-151.0,0.00015546,2]
[420159981,1775736644886,-151.0,0.00015546,2]
[420159982,1775736644897,-151.0,0.00015546,2]
[420159983,1775736644908,-293.470754,0.00015546,2]
[420159984,1775736644919,-202.235555,0.00015546,2]
[420159985,1775736644930,-202.235555,0.00015546,2]
[420159986,1775736644940,-202.235555,0.00015546,2]
[420159987,1775736644950,-202.235555,0.00015546,2]
[420159988,1775736644961,-151.0,0.00015546,2]
[420159989,1775736644972,-151.0,0.00015546,2]
[420159990,1775736644982,-151.0,0.00015546,2]
[420159991,1775736644992,-151.0,0.00015546,2]
[420159992,1775736645002,-151.0,0.00015546,2]
[420159993,1775736645013,-807.351431,0.00015546,2]
[420159994,1775736645022,-290.705002,0.00015546,2]
[420159995,1775736645032,-807.351431,0.00015546,2]
[420159996,1775736645042,-290.705002,0.00015546,2]
[420159997,1775736645051,-918.350644,0.00015546,2]
[420159998,1775736645062,-151.0,0.00015546,2]
[420159999,1775736645072,-290.705002,0.00015546,2]
[420160000,1775736645081,-807.351431,0.00015546,2]
[420160001,1775736645091,-918.350644,0.00015546,2]
[420160002,1775736645102,-290.705002,0.00015546,2]
[420160003,1775736645113,-154.759491,0.00015546,2]
[420160004,1775736645124,-807.351431,0.00015546,2]
[420160005,1775736645135,-918.350644,0.00015546,2]
[420160006,1775736645146,-918.350644,0.00015546,2]
[420160007,1775736645156,-151.0,0.00015546,2]
[420160008,1775736645166,-354.691261,0.00015546,2]
[420160009,1775736645176,-151.0,0.00015546,2]
[420160010,1775736645185,-354.691261,0.00015546,2]
[420160011,1775736645195,-354.691261,0.00015546,2]
[420160012,1775736645204,-151.0,0.00015546,2]
[420160013,1775736645214,-262.397247,0.00015546,2]
[420160014,1775736645224,-354.691261,0.00015546,2]
[420160015,1775736645234,-262.397247,0.00015546,2]
[420160016,1775736645244,-328.136431,0.00015546,2]
[420160017,1775736645253,-359.208376,0.00015546,2]
[420160018,1775736645263,-262.397247,0.00015546,2]
[420160019,1775736645274,-200.735108,0.00015546,2]
[420160020,1775736645283,-359.208376,0.00015546,2]
[420160021,1775736645292,-328.136431,0.00015546,2]
[420160022,1775736645302,-262.397247,0.00015546,2]
[420160023,1775736645312,-200.735108,0.00015546,2]
[420160024,1775736645322,-359.208376,0.00015546,2]
[420160025,1775736645332,-328.136431,0.00015546,2]
[420160026,1775736645341,-200.735108,0.00015546,2]
[420160027,1775736645351,-359.208376,0.00015546,2]
[420160028,1775736645361,-328.136431,0.00015546,2]
[420160029,1775736645371,-200.735108,0.00015546,2]
[420160030,1775736645380,-1895.118353,0.00015546,2]
[420160031,1775736645390,-151.0,0.00015546,2]
[420160032,1775736645399,-1895.118353,0.00015546,2]
[420160033,1775736645410,-376.325253,0.00015546,2]
[420160034,1775736645419,-1895.118353,0.00015546,2]
[420160035,1775736645430,-376.325253,0.00015546,2]
[420160036,1775736645439,-1895.118353,0.00015546,2]
[420160037,1775736645449,-376.325253,0.00015546,2]
[420160038,1775736645459,-151.0,0.00015546,2]
[420160039,1775736645468,-376.325253,0.00015546,2]
[420160040,1775736645478,-151.0,0.00015546,2]
[420160041,1775736645487,-151.0,0.00015546,2]
[420160042,1775736645497,-151.0,0.00015546,2]
[420160043,1775736645507,-151.0,0.00015546,2]
[420160044,1775736645517,-279.101383,0.00015546,2]
[420160045,1775736645527,-867.090923,0.00015546,2]
[420160046,1775736645536,-236.309977,0.00015546,2]
[420160047,1775736645546,-279.101383,0.00015546,2]
[420160048,1775736645555,-867.090923,0.00015546,2]
[420160049,1775736645565,-236.309977,0.00015546,2]
[420160050,1775736645575,-279.101383,0.00015546,2]
[420160051,1775736645589,-1187.916986,0.00015546,2]
[420160052,1775736645599,-236.309977,0.00015546,2]
[420160053,1775736645609,-867.090923,0.00015546,2]
[420160054,1775736645620,-243.466184,0.00015546,2]
[420160055,1775736645630,-1187.916986,0.00015546,2]
[420160056,1775736645640,-236.309977,0.00015546,2]
[420160057,1775736645650,-867.090923,0.00015546,2]
[420160058,1775736645660,-2531.466401,0.00015546,2]
[420160059,1775736645670,-279.101383,0.00015546,2]
[420160060,1775736645680,-243.466184,0.00015546,2]
[420160061,1775736645690,-1187.916986,0.00015546,2]
[420160062,1775736645700,-2531.466401,0.00015546,2]
[420160063,1775736645710,-243.466184,0.00015546,2]
[420160064,1775736645720,-1187.916986,0.00015546,2]
[420160065,1775736645730,-1051.166451,0.00015546,2]
[420160066,1775736645740,-2531.466401,0.00015546,2]
[420160067,1775736645750,-243.466184,0.00015546,2]
[420160068,1775736645759,-1051.166451,0.00015546,2]
[420160069,1775736645769,-2531.466401,0.00015546,2]
[420160070,1775736645779,-381.996298,0.00015546,2]
[420160071,1775736645789,-804.866183,0.00015546,2]
[420160072,1775736645798,-1051.166451,0.00015546,2]
[420160073,1775736645808,-381.996298,0.00015546,2]
[420160074,1775736645818,-1051.166451,0.00015546,2]
[420160075,1775736645829,-804.866183,0.00015546,2]
[420160076,1775736645838,-381.996298,0.00015546,2]
[420160077,1775736645848,-381.996298,0.00015546,2]
[420160078,1775736645858,-642.309745,0.00015546,2]
[420160079,1775736645867,-804.866183,0.00015546,2]
[420160080,1775736645877,-390.494255,0.00015546,2]
[420160081,1775736645886,-642.309745,0.00015546,2]
[420160082,1775736645897,-804.866183,0.00015546,2]
[420160083,1775736645907,-390.494255,0.00015546,2]
[420160084,1775736645917,-642.309745,0.00015546,2]
[420160085,1775736645927,-390.494255,0.00015546,2]
[420160086,1775736645937,-642.309745,0.00015546,2]
[420160087,1775736645947,-390.494255,0.00015546,2]
[420160088,1775736645957,-151.0,0.00015546,2]
[420160089,1775736645966,-223.268948,0.00015546,2]
[420160090,1775736645976,-223.268948,0.00015546,2]
[420160091,1775736645986,-223.268948,0.00015546,2]
[420160092,1775736645996,-295.777885,0.00015546,2]
[420160093,1775736646006,-638.123197,0.00015546,2]
[420160094,1775736646016,-223.268948,0.00015546,2]
[420160095,1775736646026,-295.777885,0.00015546,2]
[420160096,1775736646037,-638.123197,0.00015546,2]
[420160097,1775736646046,-1256.584761,0.00015546,2]
[420160099,1775736646055,-638.123197,0.00015546,2]
[420160100,1775736646065,-1256.584761,0.00015546,2]
[420160101,1775736646075,-1256.584761,0.00015546,2]
[420160102,1775736646084,-1256.584761,0.00015546,2]
[420160103,1775736646094,-638.123197,0.00015546,2]
[420160104,1775736646104,-295.777885,0.00015546,2]
[420160105,1775736646114,-278.430787,0.00015546,2]
[420160106,1775736646124,-307.102399,0.00015546,2]
[420160107,1775736646134,-295.777885,0.00015546,2]
[420160108,1775736646143,-278.430787,0.00015546,2]
[420160109,1775736646153,-307.102399,0.00015546,2]
[420160110,1775736646163,-278.430787,0.00015546,2]
[420160111,1775736646172,-307.102399,0.00015546,2]
[420160112,1775736646182,-278.430787,0.00015546,2]
[420160113,1775736646195,-307.102399,0.00015546,2]
[420160114,1775736646205,-151.0,0.00015546,2]
[420160115,1775736646215,-624.772443,0.00015546,2]
[420160116,1775736646225,-151.0,0.00015546,2]
[420160117,1775736646235,-151.0,0.00015546,2]
[420160118,1775736646245,-624.772443,0.00015546,2]
[420160119,1775736646256,-151.0,0.00015546,2]
[420160120,1775736646266,-624.772443,0.00015546,2]
[420160121,1775736646275,-151.0,0.00015546,2]
[420160122,1775736646285,-151.0,0.00015546,2]
[420160123,1775736646295,-624.772443,0.00015546,2]
[420160124,1775736646305,-1220.086105,0.00015546,2]
[420160125,1775736646315,-172.314368,0.00015546,2]
[420160126,1775736646324,-1220.086105,0.00015546,2]
[420160127,1775736646335,-358.263461,0.00015546,2]